[Event "Titled Tuesday Blitz January 17 Early 2023"]
[White "Mrudul Dehankar"]
[Black "Hajiyev, Kanan"]
[WhiteFideId "25096990"]
[BlackFideId "13404148"]
[WhiteElo "2030"]
[BlackElo "2197"]
[Result "0-1"]
[Round "11"]
[TimeControl "180+2"]
[Date "2023.01.17"]
[WhiteClock "0:00:02"]
[BlackClock "0:01:03"]

1. e4 {[%clk 0:01:59]}  c6 {[%clk 0:02:55]} 2. d4 {[%clk 0:01:56]}  d5 {[%clk 0:02:56]} 3. e5 {[%clk 0:01:50]}  a6 {[%clk 0:02:55]} 4. Nf3 {[%clk 0:01:48]}  Bg4 {[%clk 0:02:55]} 5. c3 {[%clk 0:01:45]}  e6 {[%clk 0:02:56]} 6. h3 {[%clk 0:01:44]}  Bh5 {[%clk 0:02:56]} 7. Bd3 {[%clk 0:01:43]}  c5 {[%clk 0:02:56]} 8. O-O {[%clk 0:01:38]}  Nc6 {[%clk 0:02:55]} 9. Be3 {[%clk 0:01:37]}  Qb6 {[%clk 0:02:53]} 10. b3 {[%clk 0:01:06]}  cxd4 {[%clk 0:02:48]} 11. cxd4 {[%clk 0:01:06]}  Nb4 {[%clk 0:02:45]} 12. Be2 {[%clk 0:01:04]}  Rc8 {[%clk 0:02:45]} 13. Nbd2 {[%clk 0:01:00]}  Ne7 {[%clk 0:02:37]} 14. Ne1 {[%clk 0:00:41]}  Bg6 {[%clk 0:02:36]} 15. a3 {[%clk 0:00:37]}  Nbc6 {[%clk 0:02:29]} 16. Nef3 {[%clk 0:00:24]}  Nf5 {[%clk 0:02:29]} 17. Rc1 {[%clk 0:00:23]}  Bxa3 {[%clk 0:02:28]} 18. Ra1 {[%clk 0:00:20]}  Bb2 {[%clk 0:02:26]} 19. Ra2 {[%clk 0:00:20]}  Bxd4 {[%clk 0:02:19]} 20. Nxd4 {[%clk 0:00:19]}  Ncxd4 {[%clk 0:02:18]} 21. Nf3 {[%clk 0:00:09]}  Nxf3+ {[%clk 0:02:07]} 22. Bxf3 {[%clk 0:00:09]}  Nxe3 {[%clk 0:02:07]} 23. fxe3 {[%clk 0:00:10]}  Qxe3+ {[%clk 0:02:08]} 24. Kh1 {[%clk 0:00:10]}  O-O {[%clk 0:02:05]} 25. Re2 {[%clk 0:00:10]}  Qg5 {[%clk 0:01:57]} 26. Qd4 {[%clk 0:00:07]}  Rc1 {[%clk 0:01:51]} 27. Ree1 {[%clk 0:00:06]}  Rfc8 {[%clk 0:01:48]} 28. h4 {[%clk 0:00:06]}  Qh6 {[%clk 0:01:34]} 29. Kg1 {[%clk 0:00:04]}  Rxe1 {[%clk 0:01:34]} 30. Rxe1 {[%clk 0:00:05]}  Rc1 {[%clk 0:01:25]} 31. Rxc1 {[%clk 0:00:03]}  Qxc1+ {[%clk 0:01:26]} 32. Kh2 {[%clk 0:00:03]}  h5 {[%clk 0:01:20]} 33. Qb6 {[%clk 0:00:02]}  Qf4+ {[%clk 0:01:19]} 34. Kg1 {[%clk 0:00:01]}  Qxh4 {[%clk 0:01:15]} 35. Qxb7 {[%clk 0:00:01]}  Qe1+ {[%clk 0:01:14]} 36. Kh2 {[%clk 0:00:02]}  Qxe5+ {[%clk 0:01:14]} 37. Kg1 {[%clk 0:00:03]}  a5 {[%clk 0:01:08]} 38. Qb5 {[%clk 0:00:02]}  Qc3 {[%clk 0:01:03]} 0-1


[Site "https://www.chess.com"]

[Event "Titled Tuesday Blitz January 17 Early 2023"]
[White "Heinemann, Josefine"]
[Black "Nugumanov, Bakhtiyar"]
[WhiteFideId "12900460"]
[BlackFideId "13701797"]
[WhiteElo "2289"]
[BlackElo "2316"]
[Result "1-0"]
[Round "11"]
[TimeControl "180+2"]
[Date "2023.01.17"]
[WhiteClock "0:01:34"]
[BlackClock "0:00:45"]

1. e4 {[%clk 0:03:00]}  d6 {[%clk 0:03:00]} 2. d4 {[%clk 0:03:00]}  Nf6 {[%clk 0:03:00]} 3. Nc3 {[%clk 0:03:00]}  e5 {[%clk 0:03:01]} 4. dxe5 {[%clk 0:02:59]}  dxe5 {[%clk 0:03:02]} 5. Qxd8+ {[%clk 0:02:59]}  Kxd8 {[%clk 0:03:03]} 6. Bc4 {[%clk 0:02:59]}  Ke8 {[%clk 0:03:03]} 7. f4 {[%clk 0:02:57]}  Bd6 {[%clk 0:03:00]} 8. g3 {[%clk 0:02:56]}  Nbd7 {[%clk 0:02:39]} 9. Nf3 {[%clk 0:02:56]}  c6 {[%clk 0:02:14]} 10. a4 {[%clk 0:02:53]}  Ke7 {[%clk 0:02:11]} 11. Be3 {[%clk 0:02:51]}  Ng4 {[%clk 0:02:07]} 12. Bg1 {[%clk 0:02:39]}  exf4 {[%clk 0:02:07]} 13. O-O-O {[%clk 0:02:31]}  fxg3 {[%clk 0:02:05]} 14. hxg3 {[%clk 0:02:26]}  Bxg3 {[%clk 0:02:02]} 15. Bd4 {[%clk 0:02:20]}  Nde5 {[%clk 0:01:54]} 16. Be2 {[%clk 0:02:15]}  Nxf3 {[%clk 0:01:36]} 17. Bc5+ {[%clk 0:02:12]}  Ke8 {[%clk 0:01:28]} 18. Bxf3 {[%clk 0:02:12]}  Nf2 {[%clk 0:01:25]} 19. Ne2 {[%clk 0:01:47]}  Nxh1 {[%clk 0:01:21]} 20. Bxh1 {[%clk 0:01:42]}  Bc7 {[%clk 0:01:18]} 21. Nd4 {[%clk 0:01:40]}  h5 {[%clk 0:01:04]} 22. Nf5 {[%clk 0:01:36]}  g6 {[%clk 0:00:45]} 23. Ng7# {[%clk 0:01:34]} 1-0


[Site "https://www.chess.com"]

[Event "Titled Tuesday Blitz January 17 Early 2023"]
[White "Skurikhin, Dmitrij"]
[Black "Gatterer, Florian"]
[WhiteFideId "4161297"]
[BlackFideId "811688"]
[WhiteElo "2297"]
[BlackElo "2170"]
[Result "1/2-1/2"]
[Round "11"]
[TimeControl "180+2"]
[Date "2023.01.17"]
[WhiteClock "0:02:39"]
[BlackClock "0:02:17"]

1. d4 {[%clk 0:02:59]}  d5 {[%clk 0:02:58]} 2. Nf3 {[%clk 0:02:59]}  Nf6 {[%clk 0:02:58]} 3. c4 {[%clk 0:02:59]}  c6 {[%clk 0:02:59]} 4. Nc3 {[%clk 0:03:00]}  g6 {[%clk 0:02:59]} 5. Bf4 {[%clk 0:03:00]}  dxc4 {[%clk 0:02:59]} 6. e3 {[%clk 0:02:59]}  Nd5 {[%clk 0:02:54]} 7. Be5 {[%clk 0:02:58]}  f6 {[%clk 0:02:50]} 8. Bg3 {[%clk 0:02:57]}  Nxc3 {[%clk 0:02:50]} 9. bxc3 {[%clk 0:02:56]}  Qa5 {[%clk 0:02:49]} 10. Bxc4 {[%clk 0:02:44]}  Qxc3+ {[%clk 0:02:43]} 11. Nd2 {[%clk 0:02:44]}  e6 {[%clk 0:02:24]} 12. Rc1 {[%clk 0:02:40]}  Qa5 {[%clk 0:02:18]} 13. O-O {[%clk 0:02:39]}  Bb4 {[%clk 0:02:17]} 1/2-1/2


[Site "https://www.chess.com"]

[Event "Titled Tuesday Blitz January 17 Early 2023"]
[White "Grot, Blazej"]
[Black "Forgacs, Attila Jr."]
[WhiteFideId "21835845"]
[BlackFideId "773654"]
[WhiteElo "1990"]
[BlackElo "2264"]
[Result "1/2-1/2"]
[Round "11"]
[TimeControl "180+2"]
[Date "2023.01.17"]
[WhiteClock "0:00:19"]
[BlackClock "0:00:07"]

1. d4 {[%clk 0:03:00]}  Nf6 {[%clk 0:02:59]} 2. c4 {[%clk 0:03:00]}  d6 {[%clk 0:02:59]} 3. Nf3 {[%clk 0:03:00]}  g6 {[%clk 0:02:58]} 4. g3 {[%clk 0:03:00]}  Bg7 {[%clk 0:02:59]} 5. Bg2 {[%clk 0:03:00]}  O-O {[%clk 0:02:59]} 6. O-O {[%clk 0:03:00]}  Nbd7 {[%clk 0:03:00]} 7. Nbd2 {[%clk 0:02:59]}  e5 {[%clk 0:03:00]} 8. e3 {[%clk 0:02:57]}  c6 {[%clk 0:02:59]} 9. Qc2 {[%clk 0:02:56]}  Qc7 {[%clk 0:02:56]} 10. Rd1 {[%clk 0:02:55]}  Re8 {[%clk 0:02:51]} 11. b3 {[%clk 0:02:54]}  Nf8 {[%clk 0:02:48]} 12. Bb2 {[%clk 0:02:53]}  b6 {[%clk 0:02:21]} 13. dxe5 {[%clk 0:02:46]}  dxe5 {[%clk 0:02:19]} 14. c5 {[%clk 0:02:46]}  b5 {[%clk 0:02:15]} 15. Ng5 {[%clk 0:02:34]}  Bf5 {[%clk 0:02:02]} 16. Nge4 {[%clk 0:02:32]}  Nxe4 {[%clk 0:01:59]} 17. Nxe4 {[%clk 0:02:31]}  Rad8 {[%clk 0:01:56]} 18. Qc3 {[%clk 0:02:30]}  Bxe4 {[%clk 0:01:55]} 19. Bxe4 {[%clk 0:02:29]}  f5 {[%clk 0:01:55]} 20. Bg2 {[%clk 0:02:28]}  e4 {[%clk 0:01:55]} 21. Qc2 {[%clk 0:02:15]}  Ne6 {[%clk 0:01:52]} 22. b4 {[%clk 0:02:15]}  a5 {[%clk 0:01:38]} 23. a3 {[%clk 0:02:12]}  a4 {[%clk 0:01:38]} 24. Bxg7 {[%clk 0:01:59]}  Qxg7 {[%clk 0:01:35]} 25. g4 {[%clk 0:01:58]}  Ng5 {[%clk 0:01:27]} 26. h3 {[%clk 0:01:56]}  Nf3+ {[%clk 0:01:20]} 27. Bxf3 {[%clk 0:01:54]}  exf3 {[%clk 0:01:21]} 28. Rxd8 {[%clk 0:01:46]}  Rxd8 {[%clk 0:01:21]} 29. Rd1 {[%clk 0:01:44]}  Rxd1+ {[%clk 0:01:05]} 30. Qxd1 {[%clk 0:01:44]}  fxg4 {[%clk 0:01:04]} 31. hxg4 {[%clk 0:01:41]}  Qf6 {[%clk 0:01:01]} 32. Qd7 {[%clk 0:01:27]}  h5 {[%clk 0:00:53]} 33. Qc8+ {[%clk 0:00:45]}  Kg7 {[%clk 0:00:52]} 34. Qd7+ {[%clk 0:00:45]}  Kh6 {[%clk 0:00:50]} 35. e4 {[%clk 0:00:25]}  hxg4 {[%clk 0:00:40]} 36. Qxg4 {[%clk 0:00:24]}  Qg5 {[%clk 0:00:40]} 37. Qg3 {[%clk 0:00:21]}  Qc1+ {[%clk 0:00:16]} 38. Kh2 {[%clk 0:00:20]}  Qxa3 {[%clk 0:00:09]} 39. Qf4+ {[%clk 0:00:20]}  Kg7 {[%clk 0:00:07]} 40. Qc7+ {[%clk 0:00:20]}  Kh6 {[%clk 0:00:07]} 41. Qf4+ {[%clk 0:00:19]}  Kg7 {[%clk 0:00:07]} 42. Qc7+ {[%clk 0:00:19]}  Kh6 {[%clk 0:00:07]} 43. Qf4+ {[%clk 0:00:19]} 1/2-1/2


[Site "https://www.chess.com"]

[Event "Titled Tuesday Blitz January 17 Early 2023"]
[White "Andreev, Konstantin"]
[Black "parintele_chess"]
[WhiteFideId "24239305"]
[WhiteElo "2195"]
[BlackElo "2259"]
[Result "0-1"]
[Round "11"]
[TimeControl "180+2"]
[Date "2023.01.17"]
[WhiteClock "0:00:03"]
[BlackClock "0:00:04"]

1. e4 {[%clk 0:03:00]}  c6 {[%clk 0:02:56]} 2. d4 {[%clk 0:03:00]}  d5 {[%clk 0:02:56]} 3. e5 {[%clk 0:03:01]}  Bf5 {[%clk 0:02:55]} 4. Nf3 {[%clk 0:03:01]}  e6 {[%clk 0:02:55]} 5. Be2 {[%clk 0:03:01]}  Nd7 {[%clk 0:02:52]} 6. O-O {[%clk 0:03:02]}  Ne7 {[%clk 0:02:51]} 7. Nbd2 {[%clk 0:03:01]}  Ng6 {[%clk 0:02:42]} 8. a4 {[%clk 0:03:01]}  a5 {[%clk 0:02:40]} 9. Ne1 {[%clk 0:03:00]}  h5 {[%clk 0:02:34]} 10. Nb3 {[%clk 0:02:58]}  Be7 {[%clk 0:02:27]} 11. Bxh5 {[%clk 0:02:56]}  c5 {[%clk 0:02:18]} 12. g4 {[%clk 0:02:40]}  Rxh5 {[%clk 0:01:52]} 13. gxh5 {[%clk 0:02:36]}  Nh4 {[%clk 0:01:53]} 14. Kh1 {[%clk 0:01:56]}  Bg5 {[%clk 0:01:48]} 15. Rg1 {[%clk 0:01:47]}  Bxc1 {[%clk 0:01:08]} 16. Rxc1 {[%clk 0:01:48]}  c4 {[%clk 0:00:59]} 17. Nd2 {[%clk 0:01:45]}  Qb6 {[%clk 0:00:48]} 18. Nef3 {[%clk 0:01:30]}  Nxf3 {[%clk 0:00:47]} 19. Nxf3 {[%clk 0:01:20]}  Be4 {[%clk 0:00:46]} 20. Rxg7 {[%clk 0:01:14]}  O-O-O {[%clk 0:00:24]} 21. Kg2 {[%clk 0:00:58]}  Rh8 {[%clk 0:00:21]} 22. Rg5 {[%clk 0:00:48]}  Qd8 {[%clk 0:00:21]} 23. Qd2 {[%clk 0:00:48]}  Rg8 {[%clk 0:00:14]} 24. h4 {[%clk 0:00:43]}  f6 {[%clk 0:00:14]} 25. exf6 {[%clk 0:00:39]}  Nxf6 {[%clk 0:00:15]} 26. Qf4 {[%clk 0:00:37]}  Nxh5 {[%clk 0:00:13]} 27. Qg4 {[%clk 0:00:36]}  Nf6 {[%clk 0:00:02]} 28. Rxg8 {[%clk 0:00:32]}  Nxg8 {[%clk 0:00:02]} 29. Rg1 {[%clk 0:00:27]}  Nf6 {[%clk 0:00:02]} 30. Qxe6+ {[%clk 0:00:27]}  Kb8 {[%clk 0:00:02]} 31. Qh3 {[%clk 0:00:22]}  Nh5 {[%clk 0:00:02]} 32. Kf1 {[%clk 0:00:20]}  Nf4 {[%clk 0:00:02]} 33. Qg4 {[%clk 0:00:19]}  Qd6 {[%clk 0:00:03]} 34. Nd2 {[%clk 0:00:12]}  Bxc2 {[%clk 0:00:03]} 35. Qg8+ {[%clk 0:00:08]}  Ka7 {[%clk 0:00:03]} 36. Rg3 {[%clk 0:00:08]}  Bd3+ {[%clk 0:00:03]} 37. Ke1 {[%clk 0:00:04]}  Qe6+ {[%clk 0:00:02]} 38. Re3 {[%clk 0:00:04]}  Qxg8 {[%clk 0:00:02]} 39. Rf3 {[%clk 0:00:02]}  Qg1+ {[%clk 0:00:03]} 40. Nf1 {[%clk 0:00:02]}  Qxf1+ {[%clk 0:00:03]} 41. Kd2 {[%clk 0:00:03]}  Qe2+ {[%clk 0:00:04]} 42. Kc1 {[%clk 0:00:03]}  Qc2# {[%clk 0:00:04]} 0-1


[Site "https://www.chess.com"]

[Event "Titled Tuesday Blitz January 17 Early 2023"]
[White "Melikhov, Evgeny V."]
[Black "Smietanska, Wiktoria"]
[WhiteFideId "4122046"]
[BlackFideId "21869359"]
[WhiteElo "2269"]
[BlackElo "1936"]
[Result "0-1"]
[Round "11"]
[TimeControl "180+2"]
[Date "2023.01.17"]
[WhiteClock "0:00:33"]
[BlackClock "0:00:20"]

1. d4 {[%clk 0:03:00]}  Nf6 {[%clk 0:02:55]} 2. c4 {[%clk 0:03:00]}  g6 {[%clk 0:02:55]} 3. Nc3 {[%clk 0:03:00]}  Bg7 {[%clk 0:02:54]} 4. e4 {[%clk 0:03:00]}  d6 {[%clk 0:02:55]} 5. f3 {[%clk 0:02:59]}  O-O {[%clk 0:02:53]} 6. Be3 {[%clk 0:03:00]}  c5 {[%clk 0:02:49]} 7. Nge2 {[%clk 0:02:59]}  Nc6 {[%clk 0:02:48]} 8. d5 {[%clk 0:02:59]}  Ne5 {[%clk 0:02:48]} 9. Ng3 {[%clk 0:02:59]}  e6 {[%clk 0:02:46]} 10. Be2 {[%clk 0:02:57]}  exd5 {[%clk 0:02:44]} 11. cxd5 {[%clk 0:02:57]}  h5 {[%clk 0:02:39]} 12. O-O {[%clk 0:02:56]}  a6 {[%clk 0:02:24]} 13. a4 {[%clk 0:02:55]}  h4 {[%clk 0:02:17]} 14. Nh1 {[%clk 0:02:54]}  Nh5 {[%clk 0:02:16]} 15. Nf2 {[%clk 0:02:50]}  f5 {[%clk 0:02:13]} 16. f4 {[%clk 0:02:44]}  Ng4 {[%clk 0:02:07]} 17. Nxg4 {[%clk 0:02:43]}  fxg4 {[%clk 0:02:05]} 18. Bxg4 {[%clk 0:02:43]}  Bxg4 {[%clk 0:01:55]} 19. Qxg4 {[%clk 0:02:42]}  Qf6 {[%clk 0:01:52]} 20. e5 {[%clk 0:02:21]}  dxe5 {[%clk 0:01:47]} 21. f5 {[%clk 0:02:21]}  Nf4 {[%clk 0:01:39]} 22. Bxf4 {[%clk 0:02:10]}  gxf5 {[%clk 0:01:30]} 23. Qg5 {[%clk 0:01:37]}  exf4 {[%clk 0:01:26]} 24. Qxf6 {[%clk 0:01:37]}  Bxf6 {[%clk 0:01:24]} 25. Rxf4 {[%clk 0:01:37]}  Bg5 {[%clk 0:01:21]} 26. Rf3 {[%clk 0:01:32]}  Kg7 {[%clk 0:01:15]} 27. Re1 {[%clk 0:01:22]}  Kg6 {[%clk 0:01:00]} 28. Re6+ {[%clk 0:01:21]}  Bf6 {[%clk 0:00:59]} 29. h3 {[%clk 0:01:17]}  Rfe8 {[%clk 0:00:58]} 30. Rfe3 {[%clk 0:01:16]}  Kf7 {[%clk 0:00:50]} 31. Kf1 {[%clk 0:00:54]}  Bd4 {[%clk 0:00:46]} 32. Re2 {[%clk 0:00:48]}  Rad8 {[%clk 0:00:28]} 33. Rxe8 {[%clk 0:00:45]}  Rxe8 {[%clk 0:00:28]} 34. Rxe8 {[%clk 0:00:45]}  Kxe8 {[%clk 0:00:29]} 35. Ke2 {[%clk 0:00:45]}  Ke7 {[%clk 0:00:28]} 36. Kd3 {[%clk 0:00:45]}  Bxc3 {[%clk 0:00:19]} 37. bxc3 {[%clk 0:00:45]}  b5 {[%clk 0:00:19]} 38. axb5 {[%clk 0:00:42]}  axb5 {[%clk 0:00:20]} 39. c4 {[%clk 0:00:31]}  bxc4+ {[%clk 0:00:19]} 40. Kc3 {[%clk 0:00:30]}  Kd6 {[%clk 0:00:19]} 41. Kxc4 {[%clk 0:00:30]}  f4 {[%clk 0:00:19]} 42. Kc3 {[%clk 0:00:30]}  Kxd5 {[%clk 0:00:19]} 43. Kd3 {[%clk 0:00:30]}  c4+ {[%clk 0:00:19]} 44. Kc3 {[%clk 0:00:31]}  Kc5 {[%clk 0:00:20]} 45. Kc2 {[%clk 0:00:30]}  Kd4 {[%clk 0:00:20]} 46. Kd2 {[%clk 0:00:31]}  c3+ {[%clk 0:00:20]} 47. Kc2 {[%clk 0:00:31]}  Kc4 {[%clk 0:00:20]} 48. Kc1 {[%clk 0:00:31]}  Kd3 {[%clk 0:00:20]} 49. Kd1 {[%clk 0:00:31]}  Ke3 {[%clk 0:00:20]} 50. Kc2 {[%clk 0:00:31]}  Kf2 {[%clk 0:00:19]} 51. Kxc3 {[%clk 0:00:32]}  Kxg2 {[%clk 0:00:20]} 52. Kd4 {[%clk 0:00:33]}  f3 {[%clk 0:00:20]} 0-1


[Site "https://www.chess.com"]

[Event "Titled Tuesday Blitz January 17 Early 2023"]
[White "Dwilewicz, Katarzyna"]
[Black "Lauridsen, Jesper Morch"]
[WhiteFideId "1148486"]
[BlackFideId "1401890"]
[WhiteElo "2115"]
[BlackElo "2309"]
[Result "0-1"]
[Round "11"]
[TimeControl "180+2"]
[Date "2023.01.17"]
[WhiteClock "0:00:18"]
[BlackClock "0:00:05"]

1. e4 {[%clk 0:02:59]}  c5 {[%clk 0:02:58]} 2. Be2 {[%clk 0:02:58]}  b6 {[%clk 0:02:56]} 3. f4 {[%clk 0:02:57]}  Bb7 {[%clk 0:02:56]} 4. Nc3 {[%clk 0:02:58]}  Nf6 {[%clk 0:02:54]} 5. d3 {[%clk 0:02:58]}  d5 {[%clk 0:02:54]} 6. e5 {[%clk 0:02:55]}  d4 {[%clk 0:02:54]} 7. Bf3 {[%clk 0:02:52]}  Qc8 {[%clk 0:02:28]} 8. exf6 {[%clk 0:02:43]}  dxc3 {[%clk 0:02:28]} 9. bxc3 {[%clk 0:02:43]}  exf6 {[%clk 0:02:21]} 10. Qe2+ {[%clk 0:02:41]}  Be7 {[%clk 0:02:18]} 11. Nh3 {[%clk 0:02:41]}  O-O {[%clk 0:02:15]} 12. O-O {[%clk 0:02:36]}  Bxf3 {[%clk 0:02:10]} 13. Rxf3 {[%clk 0:02:34]}  Nc6 {[%clk 0:02:08]} 14. Bb2 {[%clk 0:02:28]}  Re8 {[%clk 0:02:07]} 15. Qf2 {[%clk 0:02:24]}  Qd7 {[%clk 0:01:50]} 16. c4 {[%clk 0:02:18]}  Nd4 {[%clk 0:01:45]} 17. Re3 {[%clk 0:02:06]}  Bd6 {[%clk 0:01:45]} 18. Rae1 {[%clk 0:02:04]}  Rxe3 {[%clk 0:01:35]} 19. Rxe3 {[%clk 0:02:03]}  Nf5 {[%clk 0:01:31]} 20. Re4 {[%clk 0:01:46]}  Re8 {[%clk 0:01:20]} 21. Qe2 {[%clk 0:01:45]}  Kf8 {[%clk 0:01:10]} 22. Nf2 {[%clk 0:01:39]}  Bxf4 {[%clk 0:01:02]} 23. Rxe8+ {[%clk 0:01:27]}  Qxe8 {[%clk 0:01:00]} 24. Qxe8+ {[%clk 0:01:27]}  Kxe8 {[%clk 0:01:01]} 25. Ne4 {[%clk 0:01:28]}  Be5 {[%clk 0:00:49]} 26. Bc1 {[%clk 0:01:23]}  Nd4 {[%clk 0:00:49]} 27. Kf2 {[%clk 0:01:17]}  Nxc2 {[%clk 0:00:46]} 28. Ke2 {[%clk 0:01:06]}  Nd4+ {[%clk 0:00:36]} 29. Kf2 {[%clk 0:00:59]}  f5 {[%clk 0:00:32]} 30. Nc3 {[%clk 0:00:57]}  Nb3 {[%clk 0:00:20]} 31. Bb2 {[%clk 0:00:49]}  Bxc3 {[%clk 0:00:17]} 32. Bxc3 {[%clk 0:00:49]}  Nd4 {[%clk 0:00:16]} 33. Ke3 {[%clk 0:00:47]}  Ne6 {[%clk 0:00:15]} 34. Be5 {[%clk 0:00:48]}  Ke7 {[%clk 0:00:15]} 35. Bb8 {[%clk 0:00:47]}  a6 {[%clk 0:00:13]} 36. Ba7 {[%clk 0:00:48]}  b5 {[%clk 0:00:13]} 37. cxb5 {[%clk 0:00:41]}  axb5 {[%clk 0:00:13]} 38. h3 {[%clk 0:00:41]}  f6 {[%clk 0:00:13]} 39. Bb6 {[%clk 0:00:41]}  Kd6 {[%clk 0:00:13]} 40. a3 {[%clk 0:00:37]}  g6 {[%clk 0:00:13]} 41. Ba5 {[%clk 0:00:38]}  f4+ {[%clk 0:00:13]} 42. Ke4 {[%clk 0:00:35]}  f5+ {[%clk 0:00:13]} 43. Kf3 {[%clk 0:00:35]}  Kd5 {[%clk 0:00:12]} 44. Bc3 {[%clk 0:00:34]}  g5 {[%clk 0:00:11]} 45. g4 {[%clk 0:00:31]}  fxg3 {[%clk 0:00:09]} 46. Kxg3 {[%clk 0:00:31]}  h5 {[%clk 0:00:09]} 47. Bf6 {[%clk 0:00:28]}  h4+ {[%clk 0:00:08]} 48. Kf3 {[%clk 0:00:28]}  c4 {[%clk 0:00:08]} 49. dxc4+ {[%clk 0:00:20]}  Kxc4 {[%clk 0:00:08]} 50. Be7 {[%clk 0:00:20]}  Nd4+ {[%clk 0:00:06]} 51. Ke3 {[%clk 0:00:16]}  f4+ {[%clk 0:00:05]} 52. Ke4 {[%clk 0:00:16]}  f3 {[%clk 0:00:05]} 53. Ke3 {[%clk 0:00:14]}  Nf5+ {[%clk 0:00:05]} 54. Kxf3 {[%clk 0:00:15]}  Nxe7 {[%clk 0:00:05]} 55. Kg4 {[%clk 0:00:15]}  Kb3 {[%clk 0:00:05]} 56. Kxg5 {[%clk 0:00:16]}  Kxa3 {[%clk 0:00:06]} 57. Kxh4 {[%clk 0:00:17]}  b4 {[%clk 0:00:05]} 58. Kg5 {[%clk 0:00:18]}  b3 {[%clk 0:00:06]} 59. h4 {[%clk 0:00:18]}  b2 {[%clk 0:00:05]} 0-1


[Site "https://www.chess.com"]

[Event "Titled Tuesday Blitz January 17 Early 2023"]
[White "Rose, Felix"]
[Black "Osmak, Yuliia"]
[WhiteFideId "5105722"]
[BlackFideId "14101602"]
[WhiteElo "2091"]
[BlackElo "2440"]
[Result "0-1"]
[Round "11"]
[TimeControl "180+2"]
[Date "2023.01.17"]
[WhiteClock "0:00:09"]
[BlackClock "0:00:17"]

1. e4 {[%clk 0:03:00]}  a6 {[%clk 0:02:57]} 2. d4 {[%clk 0:03:00]}  b5 {[%clk 0:02:57]} 3. a4 {[%clk 0:02:58]}  b4 {[%clk 0:02:56]} 4. Bg5 {[%clk 0:02:47]}  Bb7 {[%clk 0:02:55]} 5. Bd3 {[%clk 0:02:45]}  Nf6 {[%clk 0:02:54]} 6. Nd2 {[%clk 0:02:35]}  h6 {[%clk 0:02:53]} 7. Bh4 {[%clk 0:02:28]}  g5 {[%clk 0:02:53]} 8. Bg3 {[%clk 0:02:28]}  Bg7 {[%clk 0:02:53]} 9. e5 {[%clk 0:02:03]}  Nd5 {[%clk 0:02:44]} 10. Ne2 {[%clk 0:01:58]}  Nc6 {[%clk 0:02:39]} 11. O-O {[%clk 0:01:53]}  h5 {[%clk 0:02:37]} 12. h4 {[%clk 0:01:43]}  g4 {[%clk 0:02:28]} 13. Ne4 {[%clk 0:01:16]}  d6 {[%clk 0:02:25]} 14. e6 {[%clk 0:01:06]}  fxe6 {[%clk 0:02:19]} 15. Ng5 {[%clk 0:01:05]}  Kd7 {[%clk 0:01:56]} 16. Nf7 {[%clk 0:00:55]}  Qg8 {[%clk 0:01:54]} 17. Nxh8 {[%clk 0:00:54]}  Qxh8 {[%clk 0:01:55]} 18. c3 {[%clk 0:00:54]}  Rf8 {[%clk 0:01:46]} 19. Qc2 {[%clk 0:00:23]}  a5 {[%clk 0:01:43]} 20. Rac1 {[%clk 0:00:16]}  bxc3 {[%clk 0:01:33]} 21. bxc3 {[%clk 0:00:16]}  e5 {[%clk 0:01:33]} 22. dxe5 {[%clk 0:00:15]}  Nxe5 {[%clk 0:01:30]} 23. Bf5+ {[%clk 0:00:12]}  e6 {[%clk 0:01:29]} 24. Be4 {[%clk 0:00:12]}  Bc6 {[%clk 0:01:26]} 25. c4 {[%clk 0:00:13]}  Nb4 {[%clk 0:01:25]} 26. Bxc6+ {[%clk 0:00:13]}  Nexc6 {[%clk 0:01:23]} 27. Qd1 {[%clk 0:00:11]}  Bb2 {[%clk 0:01:19]} 28. Rb1 {[%clk 0:00:11]}  Be5 {[%clk 0:01:15]} 29. c5 {[%clk 0:00:12]}  d5 {[%clk 0:01:14]} 30. Bxe5 {[%clk 0:00:12]}  Qxe5 {[%clk 0:01:13]} 31. Ng3 {[%clk 0:00:12]}  Qf6 {[%clk 0:01:10]} 32. Qd2 {[%clk 0:00:09]}  Qxh4 {[%clk 0:01:09]} 33. Qh6 {[%clk 0:00:08]}  Rf7 {[%clk 0:01:07]} 34. Qxh5 {[%clk 0:00:09]}  Qe7 {[%clk 0:01:06]} 35. Qxg4 {[%clk 0:00:09]}  Rh7 {[%clk 0:01:03]} 36. Rfe1 {[%clk 0:00:09]}  Nd3 {[%clk 0:01:00]} 37. Re3 {[%clk 0:00:09]}  Nxc5 {[%clk 0:01:00]} 38. Rbe1 {[%clk 0:00:09]}  Rh4 {[%clk 0:00:55]} 39. Qg8 {[%clk 0:00:08]}  Rxa4 {[%clk 0:00:53]} 40. Nf5 {[%clk 0:00:08]}  Qf6 {[%clk 0:00:51]} 41. Ng7 {[%clk 0:00:08]}  Re4 {[%clk 0:00:38]} 42. Qe8+ {[%clk 0:00:08]}  Kd6 {[%clk 0:00:38]} 43. Rxe4 {[%clk 0:00:08]}  Nxe4 {[%clk 0:00:37]} 44. Nh5 {[%clk 0:00:06]}  Qxf2+ {[%clk 0:00:37]} 45. Kh2 {[%clk 0:00:07]}  Qh4+ {[%clk 0:00:37]} 46. Kg1 {[%clk 0:00:07]}  Qxe1+ {[%clk 0:00:38]} 47. Kh2 {[%clk 0:00:08]}  Qh4+ {[%clk 0:00:37]} 48. Kg1 {[%clk 0:00:09]}  Qg5 {[%clk 0:00:33]} 49. Qf8+ {[%clk 0:00:04]}  Ne7 {[%clk 0:00:33]} 50. Ng7 {[%clk 0:00:04]}  Qc1+ {[%clk 0:00:31]} 51. Kh2 {[%clk 0:00:04]}  Qh6+ {[%clk 0:00:31]} 52. Kg1 {[%clk 0:00:05]}  Qe3+ {[%clk 0:00:31]} 53. Kh2 {[%clk 0:00:06]}  Qg3+ {[%clk 0:00:29]} 54. Kg1 {[%clk 0:00:06]}  Qe1+ {[%clk 0:00:28]} 55. Kh2 {[%clk 0:00:07]}  Qh4+ {[%clk 0:00:29]} 56. Kg1 {[%clk 0:00:07]}  Kc6 {[%clk 0:00:29]} 57. Nxe6 {[%clk 0:00:06]}  Qf6 {[%clk 0:00:18]} 58. Nd8+ {[%clk 0:00:05]}  Kd7 {[%clk 0:00:18]} 59. Qxf6 {[%clk 0:00:05]}  Nxf6 {[%clk 0:00:18]} 60. Nb7 {[%clk 0:00:05]}  Nc6 {[%clk 0:00:17]} 61. Kf2 {[%clk 0:00:04]}  Ne4+ {[%clk 0:00:17]} 62. Ke3 {[%clk 0:00:05]}  a4 {[%clk 0:00:17]} 63. g4 {[%clk 0:00:04]}  a3 {[%clk 0:00:18]} 64. Nc5+ {[%clk 0:00:04]}  Nxc5 {[%clk 0:00:17]} 65. g5 {[%clk 0:00:04]}  Ne6 {[%clk 0:00:16]} 66. g6 {[%clk 0:00:05]}  a2 {[%clk 0:00:17]} 67. Kd2 {[%clk 0:00:05]}  a1=Q {[%clk 0:00:16]} 68. g7 {[%clk 0:00:06]}  Qxg7 {[%clk 0:00:16]} 69. Kd3 {[%clk 0:00:07]}  Qg3+ {[%clk 0:00:17]} 70. Kc2 {[%clk 0:00:05]}  Qe3 {[%clk 0:00:16]} 71. Kb2 {[%clk 0:00:06]}  d4 {[%clk 0:00:16]} 72. Kc2 {[%clk 0:00:06]}  d3+ {[%clk 0:00:16]} 73. Kc3 {[%clk 0:00:07]}  d2+ {[%clk 0:00:17]} 74. Kc4 {[%clk 0:00:08]}  Qd4+ {[%clk 0:00:16]} 75. Kb5 {[%clk 0:00:08]}  Qb4+ {[%clk 0:00:16]} 76. Ka6 {[%clk 0:00:09]}  Qa5+ {[%clk 0:00:17]} 77. Kb7 {[%clk 0:00:09]}  Qb6+ {[%clk 0:00:17]} 78. Ka8 {[%clk 0:00:09]}  Qa7# {[%clk 0:00:17]} 0-1


[Site "https://www.chess.com"]